bitfinex/quotes_SOLUSD_20240716
["timestamp","ask_amount","ask_price","bid_price","bid_amount"]
[1721159053775,10.0,162.03,161.86,64.77521379]
[1721159053776,0.4887822,161.97,161.86,64.77521379]
[1721159053982,6.1737,161.98,161.87,20.34]
[1721159054274,0.4887822,161.97,161.87,20.0]
[1721159055564,0.4887822,161.97,161.87,20.3711]
[1721159057490,6.1753,161.94,161.87,0.3711]
[1721159057710,0.4887822,161.93,161.87,0.3711]
[1721159057868,0.4887822,161.92,161.87,0.3711]
[1721159058383,6.4472,161.91,161.87,0.3711]
[1721159058581,0.4887822,161.9,161.87,0.3711]
[1721159059195,6.4472,161.91,161.87,0.3711]
[1721159059496,0.32550435,161.9,161.87,0.3711]
[1721159060389,10.32550435,161.89,161.83,6.40103987]
[1721159060591,10.0,161.87,161.76,16.6116]
[1721159060789,0.32550435,161.86,161.76,16.6116]
[1721159061002,0.32550435,161.85,161.76,16.6116]
[1721159061171,16.3664,161.84,161.75,7.23660742]
[1721159061489,0.32550435,161.83,161.76,1.23625588]
[1721159061787,0.32550435,161.83,161.75,7.23660742]
[1721159062190,0.32550435,161.83,161.76,1.23609283]
[1721159062491,0.32550435,161.83,161.77,1.23609387]
[1721159062995,6.69190435,161.84,161.77,1.23609387]
[1721159063179,6.3664,161.84,161.77,1.23609387]
[1721159063371,6.3664,161.84,161.75,7.23660742]
[1721159063568,6.3664,161.84,161.76,45.17]
[1721159064091,0.32550435,161.87,161.77,1.23592702]
[1721159064789,0.32550435,161.87,161.78,16.4714]
[1721159064970,0.32550435,161.87,161.79,45.0]
[1721159065572,0.32550435,161.9,161.79,45.0]
[1721159065769,0.32550435,161.9,161.8,1.23558726]
[1721159066005,0.32550435,161.9,161.8,21.57558726]
[1721159066172,0.32550435,161.9,161.81,45.0]
[1721159066365,0.32550435,161.9,161.82,1.23558436]
[1721159066676,0.32550435,161.9,161.5,15.0196]
[1721159066677,10.0,161.71,161.5,15.0196]
[1721159066868,0.32550435,161.72,161.5,15.0196]
[1721159067287,0.32550435,161.72,161.5,16.25661319]
[1721159067491,6.4943,161.73,161.6,1.23701319]
[1721159067687,6.182,161.76,161.61,1.23673767]
[1721159067882,0.32550435,161.75,161.61,1.23673767]
[1721159068586,0.32550435,161.75,161.54,18.54]
[1721159068967,6.50820435,161.75,161.55,19.77684136]
[1721159069178,6.50820435,161.75,161.6,1.23689729]
[1721159069379,0.32550435,161.74,161.61,1.23691631]
[1721159069781,6.50830435,161.74,161.61,1.23691631]
[1721159069978,0.32550435,161.73,161.62,1.23692092]
[1721159070871,6.1824,161.75,161.62,1.23692092]
[1721159071101,0.32550435,161.74,161.62,1.23692092]
[1721159071273,0.32550435,161.74,161.55,18.54]
[1721159071477,0.32550435,161.78,161.63,16.83772054]
[1721159071688,6.50700435,161.78,161.64,65.34]
[1721159071872,6.50700435,161.78,161.65,1.23670538]
[1721159072274,6.1817,161.77,161.64,65.34]
[1721159072478,0.32550435,161.76,161.64,65.34]
[1721159072696,0.32550435,161.76,161.65,1.2367012]
[1721159073200,0.32550435,161.76,161.64,65.34]
[1721159075395,6.50750435,161.76,161.65,1.23670662]
[1721159075579,0.32550435,161.75,161.65,1.23670662]
[1721159076599,0.32550435,161.76,161.65,1.23670662]
[1721159076793,0.32550435,161.76,161.64,65.34]
[1721159076992,0.32550435,161.76,161.65,1.23670702]
[1721159077194,6.50750435,161.76,161.65,1.23670702]
[1721159077400,6.1829,161.74,161.64,65.0]
[1721159077610,0.32550435,161.76,161.65,1.40683062]
[1721159078282,0.32550435,161.76,161.66,6.39220316]
[1721159078487,0.32550435,161.76,161.67,45.0]
[1721159078694,6.50750435,161.76,161.67,45.0]
[1721159078898,0.32550435,161.76,161.67,46.23673469]
[1721159079195,0.32550435,161.76,161.67,45.0]
[1721159079576,6.50760435,161.76,161.67,45.0]
[1721159080597,0.32550435,161.76,161.68,1.23673742]
[1721159080794,0.32550435,161.78,161.68,1.23673742]
[1721159081783,0.32550435,161.79,161.68,1.23673742]
[1721159082387,0.32550435,161.79,161.69,0.34]
[1721159082588,0.32550435,161.79,161.7,1.23636951]
[1721159082805,0.32550435,161.8,161.71,1.23636759]
[1721159083008,0.32550435,161.8,161.69,0.34]
[1721159083203,4.4299,161.87,161.73,15.2323]
[1721159083204,0.32550435,161.83,161.73,15.2323]
[1721159083382,0.32550435,161.83,161.74,1.23606343]
[1721159083584,0.32550435,161.83,161.74,46.23606343]
[1721159084200,6.50480435,161.83,161.74,46.23606343]
[1721159084403,0.32550435,161.82,161.74,45.0]
[1721159084597,6.50540435,161.82,161.74,45.0]
[1721159084905,6.179,161.84,161.75,1.23618608]
[1721159085213,0.32550435,161.83,161.75,1.23618608]
[1721159085799,6.50480435,161.83,161.75,1.23618608]
[1721159086000,0.32550435,161.82,161.75,1.23618608]
[1721159086789,0.32550435,161.82,161.74,45.0]
[1721159088111,0.32550435,161.84,161.74,45.0]
[1721159088508,6.1802,161.81,161.74,45.0]
[1721159088714,0.32550435,161.8,161.74,45.0]
[1721159089006,6.50630435,161.79,161.73,8.06237036]
[1721159089316,0.32550435,161.78,161.74,1.23641219]
[1721159089695,0.32550435,161.78,161.73,8.06237036]
[1721159090107,6.50550435,161.82,161.74,1.23642478]
[1721159090712,6.1801,161.81,161.74,1.23642478]
[1721159090895,0.32550435,161.8,161.74,1.23642478]
[1721159091099,0.32550435,161.84,161.73,8.06237036]
[1721159091295,0.32550435,161.84,161.74,45.0]
[1721159091296,6.1797,161.82,161.74,45.0]
[1721159091529,0.32550435,161.81,161.74,45.0]
[1721159091715,6.1798,161.82,161.74,45.0]
[1721159091915,0.32550435,161.81,161.74,45.0]
[1721159092933,0.32550435,161.82,161.74,45.0]
[1721159094344,6.50520435,161.82,161.74,45.0]
[1721159094531,0.32550435,161.81,161.74,45.0]
[1721159095930,0.32550435,161.82,161.74,45.0]
[1721159096240,6.50530435,161.82,161.74,45.0]
[1721159096628,6.1805,161.8,161.73,8.06237036]
[1721159096938,0.32550435,161.79,161.73,8.06237036]
[1721159097122,6.1801,161.81,161.73,8.06237036]
[1721159097322,0.32550435,161.8,161.73,8.06237036]
[1721159098044,0.32550435,161.8,161.74,1.2363859]
[1721159098243,0.32550435,161.8,161.73,8.06237036]
[1721159098550,6.50500435,161.83,161.73,8.06237036]
[1721159098843,0.32550435,161.82,161.73,8.06237036]
[1721159099155,0.32550435,161.82,161.74,1.23622539]
[1721159099441,6.50450435,161.84,161.74,45.0]
[1721159100126,0.32550435,161.84,161.73,8.06237036]
[1721159100857,6.179,161.84,161.73,8.06237036]
[1721159101027,0.32550435,161.83,161.73,8.06237036]
[1721159102150,0.32550435,161.82,161.73,8.06237036]
[1721159102528,6.50520435,161.82,161.73,8.06237036]
[1721159102726,6.1812,161.78,161.73,8.06237036]
[1721159102931,0.32550435,161.77,161.73,8.06237036]
[1721159103376,0.32550435,161.79,161.73,8.06237036]
[1721159103562,0.32550435,161.8,161.73,8.06237036]
[1721159103849,0.32550435,161.83,161.73,8.06237036]
[1721159104049,0.32550435,161.83,161.74,1.23626511]
[1721159104220,0.32550435,161.83,161.76,16.3554]
[1721159104428,3.49731181,161.89,161.78,29.41]
[1721159104629,0.32550435,161.89,161.79,46.23566203]
[1721159104824,0.32550435,161.89,161.78,29.41]
[1721159104825,6.1778,161.87,161.78,29.41]
[1721159105133,9.34640746,161.96,161.82,29.41]
[1721159105350,6.1751,161.94,161.83,45.0]
[1721159105663,6.50100435,161.93,161.83,1.23539627]
[1721159105830,0.32550435,161.92,161.82,45.0]
[1721159106032,0.32550435,161.92,161.81,29.41]
[1721159106241,10.0,161.91,161.79,22.6089]
[1721159106456,6.50220435,161.9,161.8,1.23580822]
[1721159106653,0.32550435,161.89,161.8,1.23580822]
[1721159106956,0.32550435,161.89,161.8,1.2358034]
[1721159107156,0.32550435,161.89,161.79,22.6089]
[1721159107463,6.1769,161.9,161.79,22.6089]
[1721159107666,0.32550435,161.89,161.8,1.23562166]
[1721159108862,0.32550435,161.89,161.79,22.6089]
[1721159109064,10.0,161.87,161.79,16.2145]
[1721159109393,16.1786,161.85,161.79,16.2145]
[1721159109565,0.32550435,161.84,161.79,16.2145]
[1721159110052,10.0,161.81,161.73,15.9254]
[1721159110258,0.32550435,161.8,161.73,15.9254]
[1721159111251,0.32550435,161.79,161.73,15.9254]
[1721159111554,6.50640435,161.79,161.73,15.9254]
[1721159112835,6.1813,161.78,161.73,15.9254]
[1721159113056,6.50720435,161.77,161.68,21.93161548]
[1721159113283,0.32550435,161.76,161.68,21.93161548]
[1721159113452,6.1836,161.72,161.68,21.93161548]
[1721159113653,0.32550435,161.71,161.68,15.5554]
[1721159113853,0.32550435,161.73,161.68,15.5554]
[1721159114155,6.1841,161.71,161.64,21.92985853]
[1721159114355,0.32550435,161.7,161.64,21.92985853]
[1721159114681,0.32550435,161.74,161.64,21.92985853]
[1721159114854,10.0,161.75,161.64,21.92985853]
[1721159114855,0.32550435,161.73,161.64,21.92985853]
[1721159115452,0.32550435,161.73,161.65,1.23693757]
[1721159115867,0.32550435,161.75,161.65,1.23693757]
[1721159116374,0.32550435,161.75,161.65,45.0]
[1721159116952,0.32550435,161.77,161.66,1.23675243]
[1721159117146,0.32550435,161.77,161.66,1.40675243]
[1721159117387,0.32550435,161.8,161.66,1.40675243]
[1721159117552,0.32550435,161.8,161.67,0.17]
[1721159117879,0.32550435,161.8,161.68,1.23638426]
[1721159118173,6.1812,161.78,161.67,45.17]
[1721159118377,0.32550435,161.77,161.67,45.17]
[1721159119378,0.32550435,161.76,161.66,20.0]
[1721159119549,0.32550435,161.76,161.67,1.23669084]
[1721159119754,0.32550435,161.79,161.68,1.23653932]
[1721159120051,10.0,161.78,161.66,45.0]
[1721159120253,6.50720435,161.77,161.66,45.0]
[1721159120453,0.32550435,161.76,161.66,45.0]
[1721159120761,0.32550435,161.76,161.66,46.23669063]
[1721159121087,0.32550435,161.78,161.67,0.17]
[1721159121377,0.32550435,161.78,161.68,1.23653586]
[1721159121583,0.32550435,161.81,161.68,1.23653586]
[1721159121889,0.32550435,161.81,161.69,0.34]
[1721159122176,0.32550435,161.81,161.7,22.74237825]
[1721159122353,6.50450435,161.84,161.71,1.40621171]
[1721159122555,6.50450435,161.84,161.71,46.40621171]
[1721159122859,0.32550435,161.84,161.71,46.40621171]
[1721159123060,0.32550435,161.84,161.73,15.0204]
[1721159123283,6.1771,161.89,161.74,46.57580309]
[1721159123466,6.50300435,161.88,161.74,45.34]
[1721159123667,0.32550435,161.88,161.74,46.57587334]
[1721159123984,10.0,161.85,161.73,15.0204]
[1721159124169,0.32550435,161.84,161.74,1.23618072]
[1721159124470,6.50330435,161.87,161.74,45.0]
[1721159124778,6.1782,161.86,161.74,45.0]
[1721159124974,0.32550435,161.85,161.74,45.0]
[1721159125282,0.32550435,161.85,161.73,15.0204]
[1721159126779,6.1789,161.84,161.73,15.0204]
[1721159127075,0.32550435,161.83,161.73,15.0204]
[1721159127477,0.32550435,161.83,161.74,1.2361852]
[1721159127875,0.32550435,161.85,161.74,46.2361852]
[1721159128077,10.0,161.83,161.74,1.23602335]
[1721159128290,0.32550435,161.82,161.73,15.0204]
[1721159128795,6.50530435,161.82,161.73,15.0204]
[1721159129300,6.1802,161.81,161.73,15.0204]
[1721159129596,0.32550435,161.8,161.73,15.0204]
[1721159130479,22.6101,161.83,161.73,15.0204]
[1721159130480,0.32550435,161.82,161.74,1.23620558]
[1721159130796,0.32550435,161.82,161.73,15.0204]
[1721159132090,10.0,161.8,161.73,15.0204]
[1721159132395,6.50640435,161.79,161.7,6.4857]
[1721159132767,0.32550435,161.79,161.7,6.4857]
[1721159133173,10.0,161.78,161.69,15.7264]
[1721159133370,0.32550435,161.77,161.69,15.7264]
[1721159133598,10.0,161.78,161.69,15.7264]
[1721159133599,6.50750435,161.76,161.69,15.7264]
[1721159133796,0.32550435,161.76,161.69,15.7264]
[1721159134093,0.32550435,161.76,161.68,6.38861321]
[1721159134094,10.32550435,161.76,161.68,6.38861321]
[1721159134290,10.32550435,161.76,161.65,22.0465]
[1721159134485,6.1828,161.74,161.66,6.37792847]
[1721159134685,6.50870435,161.73,161.66,6.37792847]
[1721159134884,0.32550435,161.73,161.66,6.37792847]
[1721159135574,6.50860435,161.73,161.66,6.37792847]
[1721159135776,0.32550435,161.73,161.66,6.37792847]
[1721159136786,0.32550435,161.76,161.67,1.23704548]
[1721159136992,0.32550435,161.76,161.68,7.70900484]
[1721159137781,0.32550435,161.76,161.68,6.4723]
[1721159137987,61.42040412,161.94,161.69,82.32864708]
[1721159137988,0.32550435,161.8,161.69,82.32864708]
[1721159138297,0.32550435,161.83,161.7,1.23625492]
[1721159138505,0.32550435,161.83,161.71,0.17]
[1721159138804,0.32550435,161.83,161.69,81.0923]
[1721159139003,6.50520435,161.82,161.7,1.23623242]
[1721159139210,0.32550435,161.82,161.71,1.23633987]
[1721159139414,0.32550435,161.82,161.69,81.0923]
[1721159139415,10.32550435,161.82,161.7,1.23658648]
[1721159139783,11.5999,161.79,161.69,15.7523]
[1721159140000,6.1821,161.76,161.69,15.7523]
[1721159140208,0.32550435,161.75,161.69,15.7523]
[1721159144912,6.50800435,161.75,161.69,15.7523]
[1721159145092,6.1832,161.73,161.69,15.7523]
[1721159145298,0.32550435,161.72,161.69,15.7523]
[1721159145696,0.32550435,161.72,161.67,6.37819116]
[1721159145899,6.50900435,161.72,161.67,6.37819116]
[1721159146296,0.32550435,161.72,161.67,6.37819116]
[1721159147103,6.1824,161.75,161.67,6.37819116]
[1721159147419,0.32550435,161.74,161.65,15.0331]
[1721159147710,0.32550435,161.73,161.66,1.23705503]
[1721159147886,0.32550435,161.73,161.65,15.0331]
[1721159148290,0.32550435,161.73,161.65,16.27011236]
[1721159148518,6.50860435,161.73,161.65,15.0331]
[1721159148821,0.32550435,161.73,161.65,15.0331]
[1721159149016,0.32550435,161.73,161.65,16.27012213]
[1721159149594,6.1835,161.72,161.65,15.0331]
[1721159149905,0.32550435,161.71,161.65,16.2701904]
[1721159150301,0.32550435,161.74,161.65,16.2701904]
[1721159150491,0.32550435,161.73,161.65,16.2701904]
[1721159150694,0.32550435,161.73,161.65,15.0331]
[1721159150916,0.32550435,161.73,161.66,1.23686613]
[1721159151135,16.50750435,161.76,161.66,1.23686613]
[1721159151422,6.50750435,161.76,161.66,1.2368691]
[1721159154444,0.32550435,161.74,161.65,15.0331]
[1721159155416,0.32550435,161.74,161.66,1.23686805]
[1721159155719,0.32550435,161.76,161.66,1.23686805]
[1721159156220,6.1835,161.72,161.65,15.0331]
[1721159156523,0.32550435,161.71,161.65,15.0331]
[1721159156823,0.32550435,161.7,161.65,15.0331]
[1721159157405,0.32550435,161.72,161.66,1.23719808]
[1721159157608,0.32550435,161.76,161.65,16.26996811]
[1721159157812,0.32550435,161.76,161.65,15.0331]
[1721159158007,10.0,161.75,161.65,16.26996811]
[1721159158204,10.0,161.72,161.65,15.0331]
[1721159158405,0.32550435,161.71,161.65,15.0331]
[1721159158717,0.32550435,161.7,161.65,15.0331]
[1721159160221,0.32550435,161.71,161.65,16.27026426]
[1721159160407,0.32550435,161.75,161.65,16.27026426]
[1721159161027,0.32550435,161.75,161.65,15.0331]
[1721159161726,0.32550435,161.75,161.66,1.2369111]
[1721159161953,0.32550435,161.77,161.66,46.2369111]
[1721159162240,0.32550435,161.79,161.67,21.7446]
[1721159162448,0.32550435,161.79,161.68,46.57647553]
[1721159162612,0.32550435,161.82,161.7,15.7886]
[1721159162810,0.32550435,161.82,161.71,45.0]
[1721159163012,0.32550435,161.82,161.72,1.23632016]
[1721159163230,0.32550435,161.82,161.73,16.1086]
[1721159163549,0.32550435,161.85,161.74,1.236229]
[1721159163724,6.50410435,161.85,161.73,16.1086]
[1721159163929,0.32550435,161.85,161.73,16.1086]
[1721159164422,10.0,161.84,161.73,16.1086]
[1721159164623,0.32550435,161.83,161.73,16.1086]
[1721159167546,0.32550435,161.82,161.74,7.24974507]
[1721159167855,0.32550435,161.84,161.74,6.0134]
[1721159168459,0.32550435,161.84,161.75,15.7497]
[1721159168624,6.1793,161.83,161.75,15.7497]
[1721159168823,6.50530435,161.82,161.75,15.7497]
[1721159169052,10.0,161.8,161.75,15.7497]
[1721159169249,6.50640435,161.79,161.75,15.7497]
[1721159169480,0.32550435,161.79,161.75,15.7497]
[1721159169754,0.32550435,161.79,161.75,8.5783575]
[1721159170536,6.50630435,161.79,161.75,8.5783575]
[1721159170957,6.1827,161.75,161.69,6.6245]
[1721159171255,6.50850435,161.74,161.6,6.4277]
[1721159171446,25.4536,161.78,161.6,6.4277]
[1721159171447,0.32550435,161.73,161.64,6.37487122]
[1721159171751,6.182,161.76,161.65,1.2369328]
[1721159171934,6.1834,161.73,161.64,6.37348261]
[1721159172257,0.32550435,161.72,161.64,6.37348261]
[1721159172761,0.32550435,161.72,161.65,15.1154]
[1721159173049,6.50900435,161.72,161.65,15.1154]
[1721159173275,10.0,161.71,161.65,15.1154]
[1721159173485,6.1846,161.69,161.65,15.1154]
[1721159173665,0.32550435,161.68,161.65,15.1154]
[1721159174186,6.51090435,161.68,161.65,15.1154]
[1721159174477,0.32550435,161.67,161.65,15.1154]
[1721159174680,0.32550435,161.67,161.61,6.37309074]
[1721159174681,0.32550435,161.67,161.61,21.48849074]
[1721159175658,0.32550435,161.67,161.62,1.23743524]
[1721159175862,0.32550435,161.7,161.62,1.23743524]
[1721159176157,0.32550435,161.7,161.61,21.48849074]
[1721159176158,6.1846,161.69,161.61,21.48849074]
[1721159176355,0.32550435,161.68,161.61,21.48849074]
[1721159176875,0.32550435,161.7,161.62,1.23736586]
[1721159177254,0.32550435,161.7,161.61,21.48849074]
[1721159177453,0.32550435,161.7,161.63,1.237291]
[1721159177881,0.32550435,161.72,161.63,1.237291]
[1721159178056,0.32550435,161.76,161.64,15.9172]
[1721159178263,10.0,161.73,161.64,15.9172]
[1721159178581,6.1839,161.71,161.64,15.9172]
[1721159178762,0.32550435,161.7,161.64,15.9172]
[1721159180195,6.50990435,161.7,161.64,15.9172]
[1721159180981,6.1847,161.69,161.64,15.9172]
[1721159181169,0.32550435,161.68,161.64,15.9172]
[1721159182069,6.1862,161.65,161.61,6.37309074]
[1721159182389,0.32550435,161.64,161.6,22.3686]
[1721159182582,0.32550435,161.67,161.6,22.3686]
[1721159183374,0.32550435,161.67,161.61,1.23743939]
[1721159184793,0.32550435,161.69,161.61,1.23743939]
[1721159185574,0.32550435,161.69,161.6,22.3686]
[1721159185789,6.51020435,161.69,161.61,1.23736752]
[1721159186096,6.51020435,161.69,161.6,22.3686]
[1721159186269,6.1854,161.67,161.6,22.3686]
[1721159186470,0.32550435,161.66,161.6,22.3686]
[1721159187878,10.0,161.63,161.59,0.8349994]
[1721159188071,10.0,161.61,161.59,0.8349994]
[1721159188395,0.32550435,161.6,161.59,0.8349994]
[1721159188766,48.17180746,161.67,161.59,0.8349994]
[1721159188767,0.32550435,161.62,161.59,0.8349994]
[1721159189078,0.32550435,161.65,161.59,0.8349994]
[1721159189270,10.32550435,161.64,161.59,0.8349994]
[1721159189470,10.0,161.62,161.59,0.8349994]
[1721159189701,6.1881,161.6,161.59,0.8349994]
[1721159189871,6.51360435,161.6,161.59,0.8349994]
[1721159190378,16.51360435,161.6,161.59,0.8349994]
[1721159190569,10.32550435,161.6,161.59,0.8349994]
[1721159191180,16.51360435,161.6,161.59,0.8349994]
[1721159191397,16.51360435,161.6,161.5,6.37625673]
[1721159191398,10.0,161.57,161.5,6.37625673]
[1721159191586,0.32550435,161.56,161.5,6.37625673]
[1721159191794,6.1901,161.55,161.5,6.37625673]
[1721159192008,6.51600435,161.54,161.5,6.37625673]
[1721159192291,0.32550435,161.54,161.5,6.37625673]
[1721159192593,10.0,161.52,161.44,16.1628]
[1721159192800,10.0,161.52,161.45,6.37575652]
[1721159192801,6.1923,161.5,161.45,6.37575652]
[1721159193097,6.1923,161.5,161.43,6.9478994]
[1721159193098,0.32550435,161.49,161.43,0.8349994]
[1721159193277,6.192,161.5,161.43,0.8349994]
[1721159193477,55.2728,161.53,161.45,6.1938]
[1721159193678,49.082,161.53,161.46,6.1934]
[1721159194076,6.1913,161.52,161.45,6.1938]
[1721159194292,10.0,161.51,161.43,0.8349994]
[1721159194681,16.1917,161.51,161.44,6.1942]
[1721159194883,6.1912,161.52,161.45,6.1937]
[1721159195082,33.08,161.53,161.46,6.1934]
[1721159195284,10.0,161.49,161.43,0.8349994]
[1721159195675,16.1919,161.51,161.43,0.8349994]
[1721159195885,6.1919,161.5,161.43,0.8349994]
[1721159196200,16.1925,161.49,161.43,0.8349994]
[1721159196375,10.0,161.49,161.43,0.8349994]
[1721159196570,6.1927,161.48,161.43,0.8349994]
[1721159196986,10.0,161.47,161.43,0.8349994]
[1721159197195,10.0,161.45,161.43,0.8349994]
[1721159197500,6.1942,161.44,161.43,0.8349994]
[1721159197874,6.1951,161.42,161.38,15.8844]
[1721159198180,6.1951,161.42,161.12,1.07962864]
[1721159198181,10.0,161.4,161.34,15.8348]
[1721159198401,10.0,161.42,161.34,15.8348]
[1721159198715,6.1954,161.41,161.34,22.0328]
[1721159198878,6.1961,161.4,161.34,15.8348]
[1721159199276,10.0,161.36,161.32,6.37979885]
[1721159199515,6.1972,161.37,161.3,6.2214]
[1721159199684,10.0,161.38,161.28,14.86616404]
[1721159199978,6.197,161.37,161.3,6.1996]
[1721159200173,10.0,161.4,161.28,14.86616404]
[1721159200407,10.0,161.38,161.29,6.1996]
[1721159200584,6.1973,161.36,161.28,14.86616404]
[1721159200784,6.1969,161.38,161.28,14.86616404]
[1721159200985,6.1969,161.37,161.28,14.86616404]
[1721159201201,16.1973,161.36,161.28,14.86616404]
[1721159201406,10.0,161.36,161.28,21.06646404]
[1721159201587,10.0,161.36,161.28,14.86616404]
[1721159201988,16.1963,161.39,161.28,14.86616404]
[1721159202202,16.1957,161.41,161.33,6.1984]
[1721159202408,10.0,161.39,161.28,14.86616404]
[1721159202709,33.08,161.44,161.29,6.0846]
[1721159202710,10.0,161.43,161.29,6.0846]
[1721159202887,6.195,161.42,161.34,6.1977]
[1721159203080,33.08,161.44,161.29,26.0846]
[1721159203310,10.0,161.48,161.4,6.1956]
[1721159203495,10.0,161.48,161.39,16.014]
[1721159203695,6.1934,161.46,161.39,16.014]
[1721159203905,6.1934,161.46,161.45,4.70291584]
[1721159204319,16.1934,161.46,161.45,4.70291584]
[1721159204893,16.193,161.48,161.45,4.70291584]
[1721159205118,6.1934,161.46,161.45,4.70291584]
[1721159205428,16.1934,161.46,161.45,4.70291584]
[1721159205634,6.1934,161.46,161.45,4.70291584]
[1721159205800,10.0,161.46,161.45,4.70291584]
[1721159206000,6.1939,161.45,161.39,16.014]
[1721159206313,10.0,161.46,161.39,16.014]
[1721159206512,6.1939,161.45,161.39,16.014]
[1721159206714,6.1942,161.44,161.39,16.014]
[1721159207050,10.0,161.46,161.39,16.014]
[1721159207051,6.1939,161.45,161.39,16.014]
[1721159207219,10.0,161.48,161.39,16.014]
[1721159207428,10.0,161.46,161.39,16.014]
[1721159207644,6.194,161.45,161.39,16.014]
[1721159207830,10.0,161.42,161.34,16.3718]
[1721159208035,16.1945,161.44,161.34,16.3718]
[1721159208344,6.1939,161.45,161.34,16.3718]
[1721159208731,10.0,161.48,161.34,16.3718]
[1721159208925,6.1939,161.45,161.34,16.3718]
[1721159209133,10.0,161.46,161.34,16.3718]
[1721159209346,10.0,161.46,161.35,45.0]
[1721159209642,6.1947,161.43,161.34,16.3718]
[1721159210845,16.1943,161.44,161.34,16.3718]
[1721159211251,10.0,161.44,161.34,16.3718]
[1721159211443,6.1938,161.45,161.35,1.23942454]
[1721159211640,10.0,161.46,161.34,16.3718]
[1721159212029,10.0,161.48,161.35,0.17]
[1721159212226,10.0,161.5,161.37,33.08]
[1721159212428,12.5512,161.51,161.39,15.3086]
[1721159212730,6.1918,161.51,161.4,7.53270156]
[1721159212931,6.1908,161.53,161.4,7.53270156]
[1721159213137,10.0,161.52,161.41,45.0]
[1721159213451,16.1912,161.52,161.41,45.0]
[1721159213642,6.1918,161.51,161.4,6.2939]
[1721159214154,6.1912,161.52,161.4,6.2939]
[1721159214451,10.0,161.51,161.4,6.2939]
[1721159214640,6.1915,161.52,161.4,6.2939]
[1721159215041,6.1923,161.49,161.4,6.2939]
[1721159215250,6.1919,161.5,161.4,6.2939]
[1721159215429,6.1924,161.49,161.4,6.2939]
[1721159216154,10.0,161.51,161.4,6.2939]
[1721159216349,10.0,161.49,161.4,6.2939]
[1721159216655,6.1928,161.48,161.4,6.2939]
[1721159217158,6.1923,161.49,161.4,6.2939]
[1721159217862,6.1927,161.48,161.4,6.2939]
[1721159218037,6.1927,161.48,161.39,11.54267992]
[1721159218965,10.0,161.51,161.39,11.54267992]
[1721159219259,6.1919,161.5,161.39,11.54267992]
[1721159219444,6.1923,161.49,161.39,11.54267992]
[1721159219646,10.0,161.51,161.39,11.54267992]
[1721159219840,25.4789,161.51,161.39,11.54267992]
[1721159220467,6.1923,161.49,161.39,11.54267992]
[1721159220757,6.1931,161.47,161.39,11.54267992]
[1721159220931,10.0,161.49,161.39,11.54267992]
[1721159220932,6.1925,161.49,161.39,11.54267992]
[1721159221135,6.1925,161.49,161.4,1.23890133]
[1721159221333,6.1927,161.48,161.39,11.54267992]
[1721159221739,6.1919,161.5,161.39,11.54267992]
[1721159222051,10.0,161.51,161.39,11.54267992]
[1721159222369,6.192,161.5,161.39,11.54267992]
[1721159222668,6.1924,161.49,161.39,11.54267992]
[1721159222971,10.0,161.51,161.39,11.54267992]
[1721159223280,10.0,161.53,161.4,46.23883011]
[1721159223443,6.1913,161.52,161.4,45.0]
[1721159223648,6.192,161.5,161.4,45.0]
[1721159223959,6.1923,161.49,161.4,45.0]
[1721159224144,6.1918,161.51,161.4,45.0]
[1721159224351,6.1919,161.5,161.4,45.0]
[1721159224553,6.1918,161.51,161.4,45.0]
[1721159224850,10.0,161.51,161.4,45.0]
[1721159225045,6.1923,161.49,161.4,45.0]
[1721159225265,6.1919,161.51,161.4,45.0]
[1721159225564,6.1919,161.5,161.4,45.0]
[1721159225742,6.1919,161.5,161.39,11.54267992]
[1721159225944,6.1925,161.49,161.39,11.54267992]
[1721159226144,6.192,161.5,161.39,11.54267992]
[1721159226358,25.4774,161.53,161.39,11.54267992]
[1721159226568,10.0,161.51,161.39,11.54267992]
[1721159226773,6.1923,161.49,161.39,11.54267992]
[1721159226949,6.192,161.5,161.39,11.54267992]
[1721159227463,10.0,161.51,161.39,11.54267992]
[1721159227464,6.1924,161.49,161.39,11.54267992]